lending/lending_fUSD_20240206
["ID","MTS","AMOUNT","RATE_DAILY","PERIOD"]
[313362000,1707233442917,-500.0,0.00050547,60]
[313362001,1707233442942,-468.54280631,0.00050547,60]
[313362002,1707233442966,-500.0,0.00050547,60]
[313362003,1707233442990,-500.0,0.00050547,60]
[313362004,1707233443014,-1214.81,0.00050547,60]
[313362005,1707233443042,-207.26945719,0.00050547,60]
[313362006,1707233443065,-150.0,0.00050547,60]
[313362007,1707233443088,-500.0,0.00050547,60]
[313362008,1707233443112,-500.0,0.00050547,60]
[313362010,1707233443136,-561.09,0.00050547,60]
[313362013,1707233443162,-500.0,0.00050547,60]
[313362014,1707233443185,-200.43256796,0.00050547,60]
[313362015,1707233443209,-586.28424542,0.00050547,60]
[313362017,1707233443232,-826.53,0.00050547,60]
[313362019,1707233443255,-500.0,0.00050547,60]
[313362020,1707233443279,-566.17677007,0.00050547,60]
[313362021,1707233443304,-500.0,0.00050547,60]
[313362022,1707233443327,-500.0,0.00050547,60]
[313362023,1707233443350,-903.63,0.00050547,60]
[313362024,1707233443373,-500.0,0.00050547,60]
[313362025,1707233443395,-500.0,0.00050547,60]
[313362026,1707233443418,-500.0,0.00050547,60]
[313362027,1707233443440,-237.61786502,0.00050547,60]
[313362028,1707233443463,-500.0,0.00050547,60]
[313362029,1707233443486,-1000.0,0.00050547,60]
[313362030,1707233443508,-504.01549632,0.00050547,60]
[313362031,1707233443530,-500.0,0.00050547,60]
[313362032,1707233443558,-568.53206061,0.00050547,60]
[313362033,1707233443580,-500.0,0.00050547,60]
[313362034,1707233443607,-606.65,0.00050547,60]
[313362035,1707233443630,-500.0,0.00050547,60]
[313362036,1707233443653,-500.0,0.00050547,60]
[313362037,1707233443677,-573.10286175,0.00050547,60]
[313362038,1707233443704,-500.0,0.00050547,60]
[313362039,1707233443727,-500.0,0.00050547,60]
[313362040,1707233443846,-500.0,0.00050547,60]
[313362041,1707233443874,-500.0,0.00050547,60]
[313362042,1707233443900,-500.0,0.00050547,60]
[313362043,1707233443929,-500.0,0.00050547,60]
[313362044,1707233443954,-500.0,0.00050547,60]
[313362045,1707233443980,-414.88446824,0.00050547,60]
[313362046,1707233444004,-504.09741462,0.00050547,60]
[313362047,1707233444029,-500.0,0.00050547,60]
[313362048,1707233444056,-500.0,0.00050547,60]
[313362049,1707233444080,-500.0,0.00050547,60]
[313362050,1707233444105,-500.0,0.00050547,60]
[313362051,1707233444130,-500.0,0.00050547,60]
[313362052,1707233444155,-500.0,0.00050547,60]
[313362053,1707233444180,-500.0,0.00050547,60]
[313362054,1707233444206,-500.0,0.00050547,60]
[313362055,1707233444232,-500.0,0.00050547,60]
[313362056,1707233444258,-500.0,0.00050547,60]
[313362057,1707233444284,-500.0,0.00050547,60]
[313362058,1707233444310,-500.0,0.00050547,60]
[313362059,1707233444335,-500.0,0.00050547,60]
[313362060,1707233444358,-549.19612911,0.00050547,60]
[313362061,1707233444382,-429.99639302,0.00050547,60]
[313362062,1707233444406,-213.75108226,0.00050547,60]
[313362063,1707233444430,-500.0,0.00050547,60]
[313362064,1707233444455,-947.83,0.00050547,60]
[313362065,1707233444480,-500.0,0.00050547,60]
[313362066,1707233444504,-500.0,0.00050547,60]
[313362067,1707233444528,-758.62,0.00050547,60]
[313362068,1707233444553,-500.0,0.00050547,60]
[313362069,1707233444577,-659.18,0.00050547,60]
[313362070,1707233444601,-500.0,0.00050547,60]
[313362071,1707233444625,-500.0,0.00050547,60]
[313362072,1707233444650,-500.0,0.00050547,60]
[313362073,1707233444675,-500.0,0.00050547,60]
[313362074,1707233444700,-500.0,0.00050547,60]
[313362075,1707233444726,-500.0,0.00050547,60]
[313362076,1707233444751,-500.0,0.00050547,60]
[313362077,1707233444775,-500.0,0.00050547,60]
[313362078,1707233444801,-500.0,0.00050547,60]
[313362079,1707233444826,-500.0,0.00050547,60]
[313362080,1707233444854,-611.71748539,0.00050547,60]
[313362081,1707233444878,-500.0,0.00050547,60]
[313362082,1707233444903,-456.56072919,0.00050547,60]
[313362083,1707233444928,-466.1,0.00050547,60]
[313362084,1707233444954,-500.0,0.00050547,60]
[313362085,1707233444979,-500.0,0.00050547,60]
[313362086,1707233445003,-500.0,0.00050547,60]
[313362087,1707233445028,-500.0,0.00050547,60]
[313362088,1707233445053,-600.33438678,0.00050547,60]
[313362089,1707233445077,-500.0,0.00050547,60]
[313362090,1707233445101,-500.0,0.00050547,60]
[313362091,1707233445125,-500.0,0.00050547,60]
[313362092,1707233445149,-500.0,0.00050547,60]
[313362093,1707233445174,-247.13910038,0.00050547,60]
[313362094,1707233445199,-390.53740354,0.00050547,60]
[313362095,1707233445224,-519.31850496,0.00050547,60]
[313362096,1707233445248,-500.0,0.00050547,60]
[313362097,1707233445277,-500.0,0.00050547,60]
[313362098,1707233445302,-500.0,0.00050547,60]
[313362099,1707233445327,-500.0,0.00050547,60]
[313362100,1707233445350,-500.0,0.00050547,60]
[313362101,1707233445374,-514.33414013,0.00050547,60]
[313362102,1707233445398,-500.0,0.00050547,60]
[313362103,1707233445423,-500.0,0.00050547,60]
[313362104,1707233445448,-500.0,0.00050547,60]
[313362105,1707233445472,-457.30331268,0.00050547,60]
[313362106,1707233445495,-500.0,0.00050547,60]
[313362107,1707233445519,-500.0,0.00050547,60]
[313362108,1707233445542,-500.0,0.00050547,60]
[313362113,1707233445656,-500.0,0.00050547,60]
[313362114,1707233445688,-500.0,0.00050547,60]
[313362115,1707233445711,-500.0,0.00050547,60]
[313362116,1707233445734,-722.0,0.00050547,60]
[313362117,1707233445759,-500.0,0.00050547,60]
[313362118,1707233445783,-500.0,0.00050547,60]
[313362119,1707233445808,-500.0,0.00050547,60]
[313362120,1707233445832,-500.0,0.00050547,60]
[313362121,1707233445858,-500.0,0.00050547,60]
[313362122,1707233445881,-1736.8,0.00050547,60]
[313362123,1707233445906,-500.0,0.00050547,60]
[313362124,1707233445935,-489.87462659,0.00050547,60]
[313362125,1707233445962,-500.0,0.00050547,60]
[313362126,1707233445989,-558.83,0.00050547,60]
[313362127,1707233446016,-500.0,0.00050547,60]
[313362128,1707233446047,-500.0,0.00050547,60]
[313362129,1707233446079,-500.0,0.00050547,60]
[313362132,1707233446108,-500.0,0.00050547,60]
[313362133,1707233446137,-500.0,0.00050547,60]
[313362134,1707233446164,-500.0,0.00050547,60]
[313362135,1707233446191,-500.0,0.00050547,60]
[313362136,1707233446217,-500.0,0.00050547,60]
[313362137,1707233446242,-500.0,0.00050547,60]
[313362138,1707233446267,-500.0,0.00050547,60]
[313362139,1707233446296,-500.0,0.00050547,60]
[313362140,1707233446322,-500.0,0.00050547,60]
[313362141,1707233446348,-583.95696655,0.00050547,60]
[313362142,1707233446373,-500.0,0.00050547,60]
[313362143,1707233446396,-500.0,0.00050547,60]
[313362144,1707233446420,-500.0,0.00050547,60]
[313362145,1707233446444,-500.0,0.00050547,60]
[313362146,1707233446468,-500.0,0.00050547,60]
[313362147,1707233446491,-500.0,0.00050547,60]
[313362148,1707233446515,-527.04442079,0.00050547,60]
[313362149,1707233446540,-500.0,0.00050547,60]
[313362150,1707233446563,-500.0,0.00050547,60]
[313362151,1707233446586,-500.0,0.00050547,60]
[313362152,1707233446610,-500.0,0.00050547,60]
[313362153,1707233446633,-622.41,0.00050547,60]
[313362154,1707233446657,-500.0,0.00050547,60]
[313362155,1707233446682,-500.0,0.00050547,60]
[313362156,1707233446711,-500.0,0.00050547,60]
[313362157,1707233446735,-500.0,0.00050547,60]
[313362158,1707233446758,-500.0,0.00050547,60]
[313362159,1707233446783,-310.72482338,0.00050547,60]
[313362160,1707233446809,-500.0,0.00050547,60]
[313362161,1707233446832,-500.0,0.00050547,60]
[313362162,1707233446857,-500.0,0.00050547,60]
[313362163,1707233446881,-500.0,0.00050547,60]
[313362164,1707233446905,-500.0,0.00050547,60]
[313362165,1707233446928,-578.65,0.00050547,60]
[313362166,1707233446952,-500.0,0.00050547,60]
[313362167,1707233446975,-500.0,0.00050547,60]
[313362168,1707233446998,-500.0,0.00050547,60]
[313362169,1707233447022,-500.0,0.00050547,60]
[313362170,1707233447047,-946.27,0.00050547,60]
[313362171,1707233447246,-500.0,0.00050547,60]
[313362172,1707233447271,-500.0,0.00050547,60]
[313362173,1707233447296,-500.0,0.00050547,60]
[313362174,1707233447321,-666.29395341,0.00050666,60]
[313362175,1707233447344,-2908.978168,0.00050684,120]
[313362176,1707233447385,-600.0,0.00050684,60]
[313362177,1707233447407,-600.0,0.00050684,60]
[313362178,1707233447433,-600.0,0.00050684,60]
[313362179,1707233447457,-666.29395341,0.0005072,60]
[313362180,1707233447483,-642154.83247686,0.0005075,120]
[313362181,1707233447742,-155.0,0.00024983,2]
[313362182,1707233447752,-4716.84608242,0.00024983,2]
[313362183,1707233447762,-4263.07443407,0.00024984,2]
[313362184,1707233447772,-350.0,0.00025,3]
[313362185,1707233447781,-1128.71616147,0.00025,2]
[313362186,1707233447795,-461.25816823,0.00025,2]
[313362187,1707233447804,-937.18611161,0.00025,2]
[313362188,1707233447814,-168.0547895,0.00026997,2]
[313362189,1707233447823,-400.0,0.00027,3]
[313362190,1707233447833,-450.0,0.00029,3]
[313362191,1707233447842,-2372.57346304,0.00029,2]
[313362192,1707233447854,-8100.79182278,0.00029,2]
[313362193,1707233447866,-8140.96471418,0.00029,2]
[313362194,1707233447876,-350.21,0.00029,2]
[313362195,1707233447885,-499.99,0.00029,2]
[313362196,1707233447895,-2738.0,0.000294,2]
[313362197,1707233447904,-366.23585006,0.000295,2]
[313362198,1707233447913,-2515.54,0.000295,2]
[313362199,1707233447923,-155.0,0.0003,2]
[313362200,1707233447931,-1984.0,0.0003,14]
[313362201,1707233447941,-1666.16,0.0003,2]
[313362202,1707233447950,-585.09173402,0.00030999,2]
[313362203,1707233447959,-500.0,0.00031,3]
[313362204,1707233447969,-3577.5309025,0.00032159,2]
[313362205,1707233447981,-314.47830538,0.00032159,2]
[313362206,1707233447992,-779.27224229,0.00032159,2]
[313362207,1707233448004,-5007.31707294,0.00032159,2]
[313362208,1707233448014,-7395.0,0.0003216,2]
[313362209,1707233448023,-2866.0,0.0003216,2]
[313362210,1707233448032,-550.0,0.00033,3]
[313362211,1707233448043,-150.41,0.00033975,2]
[313362212,1707233448052,-1051.1738,0.00034594,2]
[313362213,1707233448061,-1000.0,0.00034996,2]
[313362214,1707233448070,-174.94,0.00034996,2]
[313362215,1707233448080,-600.0,0.00035,3]
[313362216,1707233448089,-303.59031919,0.00035096,6]
[313362217,1707233448098,-568.4005245,0.00035096,6]
[313362218,1707233448107,-383.71390239,0.00035096,6]
[313362219,1707233448116,-233.12406078,0.00035096,6]
[313362220,1707233448125,-227.1387375,0.00035096,6]
[313362221,1707233448134,-435.17632589,0.00035096,6]
[313362222,1707233448144,-177.46837104,0.00035096,6]
[313362223,1707233448153,-1000.0,0.00035096,7]
[313362224,1707233448162,-7395.0,0.0003516,2]
[313362225,1707233448172,-4548.2,0.00035493,2]
[313362226,1707233448181,-1804.74,0.00035584,5]
[313362227,1707233448191,-250.0,0.00035624,2]
[313362228,1707233448200,-300.833029,0.00035924,14]
[313362229,1707233448209,-1799.82,0.00035924,5]
[313362230,1707233448219,-150.0,0.00036002,2]
[313362231,1707233448229,-3135.59445088,0.00036002,2]
[313362232,1707233448245,-2304.11621744,0.00036002,2]
[313362233,1707233448256,-862.90197581,0.00036002,2]
[313362234,1707233448268,-954.99232549,0.00036002,2]
[313362235,1707233448279,-474.43698901,0.00036002,2]
[313362236,1707233448297,-323.75358582,0.00036002,2]
[313362237,1707233448417,-288.87637773,0.00036002,2]
[313362238,1707233448429,-361.61307782,0.00036002,2]
[313362239,1707233448438,-167.97,0.00036056,2]
[313362240,1707233448447,-153.3,0.00036082,2]
[313362241,1707233448458,-168.01,0.00036089,2]
[313362242,1707233448468,-153.59,0.00036126,2]
[313362243,1707233448478,-250.0,0.00036237,2]
[313362244,1707233448487,-518.72890346,0.00036324,5]
[313362245,1707233448501,-270.20731938,0.00036324,5]
[313362246,1707233448513,-1017.64377716,0.00036324,5]
[313362247,1707233448522,-153.59,0.00036395,2]
[313362248,1707233448530,-153.59,0.00036664,2]
[313362249,1707233448541,-1833.4,0.00036907,5]
[313362250,1707233448550,-153.59,0.00036933,2]
[313362251,1707233448558,-650.0,0.00037,3]
[313362252,1707233448567,-153.59,0.00037202,2]
[313362253,1707233448576,-153.59,0.00037471,2]
[313362254,1707233448586,-153.59,0.0003774,2]
[313362255,1707233448594,-1840.65,0.00037765,5]
[313362256,1707233448604,-1455.55260082,0.00037796,6]
[313362257,1707233448613,-1000.0,0.000378,2]
[313362258,1707233448622,-43467.47594828,0.00038,2]
[313362259,1707233448631,-153.59,0.00038009,2]
[313362260,1707233448641,-7395.0,0.0003816,2]
[313362261,1707233448650,-1775.15,0.00038222,5]
[313362262,1707233448659,-150.42,0.00038356,2]
[313362263,1707233448669,-1833.76,0.00038739,5]
[313362264,1707233448679,-887.35409794,0.0003888,2]
[313362265,1707233448689,-700.0,0.00039,3]
[313362266,1707233448698,-180.0,0.00039171,2]
[313362267,1707233448710,-1804.13,0.00039353,5]
[313362268,1707233448719,-887.35409794,0.0003942,2]
[313362269,1707233448729,-150.8,0.00039524,2]
[313362270,1707233448738,-243.87175721,0.00039665,28]
[313362271,1707233448748,-9575.5784,0.00039665,2]
[313362272,1707233448756,-817.43473583,0.000398,5]
[313362273,1707233448766,-459.34664725,0.00039899,2]
[313362274,1707233448775,-106322.9538,0.000399,2]
[313362275,1707233448785,-213.72159226,0.000399,2]
[313362276,1707233448796,-1832.96,0.00039997,5]
[313362277,1707233448805,-301.97136898,0.00039997,28]
[313362278,1707233448816,-1788.94,0.00039997,5]
[313362279,1707233448825,-1774.32,0.00039997,5]
[313362280,1707233448836,-1788.91,0.00039997,5]
[313362281,1707233448845,-1789.85,0.00039997,5]
[313362282,1707233448854,-1840.12,0.00039997,5]
[313362283,1707233448863,-33980.79007741,0.0004,4]
[313362284,1707233448872,-7878.88903272,0.0004,4]
[313362285,1707233448881,-255.0,0.0004,12]
[313362286,1707233448890,-1000.0,0.0004,2]
[313362287,1707233448899,-150.41,0.00040119,2]
[313362288,1707233448908,-167.97,0.00040165,2]
[313362289,1707233448918,-1000.0,0.000405,2]
[313362290,1707233448927,-887.35409794,0.00040717,3]
[313362291,1707233448937,-4362.01781737,0.00040882,4]
[313362292,1707233448947,-692.11098515,0.00040882,4]
[313362293,1707233448957,-2474.98479183,0.00040883,4]
[313362294,1707233448968,-34366.58659421,0.00040964,4]
[313362295,1707233448978,-422.04276204,0.00040964,4]
[313362296,1707233448988,-922.02531776,0.00040964,4]
[313362297,1707233448998,-26024.84168409,0.00040978,4]
[313362298,1707233449008,-750.0,0.00041,3]
[313362299,1707233449018,-7395.0,0.0004116,2]
[313362300,1707233449123,-3823.17637436,0.00041722,16]
[313362301,1707233449134,-2370.52890136,0.00041722,16]
[313362302,1707233449145,-1526.6176398,0.00041722,7]
[313362303,1707233449155,-431.9446,0.000418,2]
[313362304,1707233449164,-3024.13853346,0.0004181,16]
[313362305,1707233449174,-15697.53868058,0.000419,4]
[313362306,1707233449183,-410.87195225,0.00041918,7]
[313362307,1707233449193,-314.73355488,0.00042,30]
[313362308,1707233449202,-150.0,0.00042,2]
[313362309,1707233449211,-311.94241579,0.00042,2]
[313362310,1707233449221,-887.35409794,0.00042015,4]
[313362311,1707233449230,-2210.70977923,0.0004208,3]
[313362312,1707233449239,-360.0,0.00042104,12]
[313362313,1707233449249,-360.0,0.00042104,12]
[313362314,1707233449258,-360.0,0.00042104,12]
[313362315,1707233449267,-360.0,0.00042104,12]
[313362316,1707233449276,-360.0,0.00042104,12]
[313362317,1707233449286,-600.0,0.000426,15]
[313362318,1707233449298,-244.74021785,0.00042699,2]
[313362319,1707233449307,-3000.0,0.000427,15]
[313362320,1707233449317,-1200.0,0.000427,15]
[313362321,1707233449326,-1800.0,0.000428,15]
[313362322,1707233449336,-416.95,0.00042849,2]
[313362323,1707233449346,-6445.26813315,0.00042873,2]
[313362324,1707233449356,-636.68311941,0.00042876,2]
[313362325,1707233449366,-595.83277076,0.00042879,5]
[313362326,1707233449375,-152.21491407,0.00042879,17]
[313362327,1707233449385,-165.56669244,0.00042879,9]
[313362328,1707233449394,-12205.65038153,0.00042887,17]
[313362329,1707233449403,-4272.62422844,0.0004289,11]
[313362330,1707233449413,-2296.0,0.0004289,2]
[313362331,1707233449422,-536.0,0.0004289,3]
[313362332,1707233449431,-5000.0,0.00042899,3]
[313362333,1707233449440,-448.34419046,0.00042899,2]
[313362334,1707233449449,-1619.959146,0.00042899,2]
[313362335,1707233449458,-1165.26012388,0.00042899,2]
[313362336,1707233449468,-319.53715058,0.00042899,2]
[313362337,1707233449477,-1230.87869144,0.00042899,2]
[313362338,1707233449486,-720.78250525,0.00042899,2]
[313362339,1707233449495,-2400.0,0.000429,15]
[313362340,1707233449504,-1743.87,0.000429,2]
[313362341,1707233449514,-31430.05210481,0.0004291,24]
[313362342,1707233449523,-385.82401621,0.0004291,2]
[313362343,1707233449532,-579.4974,0.00042946,2]
[313362344,1707233449542,-1743.87,0.00042949,2]
[313362345,1707233449551,-725.1703703,0.00042949,2]
[313362346,1707233449560,-38453.618056,0.00042958,11]
[313362347,1707233449569,-93864.2025972,0.00042958,10]
[313362348,1707233449579,-1743.87,0.00042958,2]
[313362349,1707233449588,-123906.102625,0.00042969,11]
[313362350,1707233449599,-421.35704856,0.00042976,4]
[313362351,1707233449608,-46998.8665128,0.00042978,11]
[313362352,1707233449618,-1743.87,0.00042978,2]
[313362353,1707233449627,-1743.87,0.00042978,2]
[313362354,1707233449636,-151.0,0.00042979,14]
[313362355,1707233449645,-252.06814,0.00042979,14]
[313362356,1707233449654,-151.0,0.00042988,14]
[313362357,1707233449663,-93864.2025972,0.00042988,10]
[313362358,1707233449672,-469321.012986,0.00042989,10]
[313362359,1707233449684,-725.1703703,0.00042989,2]
[313362360,1707233449693,-386.58368493,0.00042998,4]
[313362361,1707233449703,-338.48887294,0.00042998,4]
[313362362,1707233449712,-245.5740509,0.00042998,4]
[313362363,1707233449722,-203.05060201,0.00042998,4]
[313362364,1707233449731,-1824.78141952,0.00042998,4]
[313362365,1707233449742,-155.45190428,0.00042998,4]
[313362366,1707233449752,-294.50013821,0.00042998,4]
[313362367,1707233449762,-156.70974135,0.00042998,4]
[313362368,1707233449772,-475.84102699,0.00042998,4]
[313362369,1707233449784,-232.86949324,0.00042998,4]
[313362370,1707233449794,-423.24642695,0.00042998,4]
[313362371,1707233449803,-544.35199415,0.00042998,4]
[313362372,1707233449812,-231.10275425,0.00042998,4]
[313362373,1707233449821,-155.0,0.00042998,4]
[313362374,1707233449830,-209.25163965,0.00042998,4]
[313362375,1707233449839,-155.64040942,0.00042998,4]
[313362376,1707233449848,-3525.44081932,0.00042998,4]
[313362377,1707233449858,-155.0,0.00042998,4]
[313362378,1707233449868,-1857.32583047,0.00042998,4]
[313362379,1707233449879,-502.73699602,0.00042998,4]
[313362380,1707233449888,-155.0,0.00042998,4]
[313362381,1707233449899,-2139.03626942,0.00042998,4]
[313362382,1707233449908,-943.04853509,0.00042998,4]
[313362383,1707233449917,-199.40820147,0.00042998,4]
[313362384,1707233449927,-155.0,0.00042998,4]
[313362385,1707233449936,-1139.78306733,0.00042998,4]
[313362386,1707233449945,-264.1261331,0.00042998,4]
[313362387,1707233449954,-221.04924005,0.00042998,4]
[313362388,1707233449963,-158.00253832,0.00042998,4]
[313362389,1707233449973,-195.96966641,0.00042998,4]
[313362390,1707233449982,-155.0,0.00042998,4]
[313362391,1707233449991,-160.09686854,0.00042998,4]
[313362392,1707233450000,-257.41602689,0.00042998,4]
[313362393,1707233450009,-155.50691283,0.00042998,4]
[313362394,1707233450018,-189.21601166,0.00042998,4]
[313362395,1707233450028,-157.4457951,0.00042998,4]
[313362396,1707233450037,-239.68010938,0.00042998,4]
[313362397,1707233450049,-164.10462602,0.00042998,4]
[313362398,1707233450059,-1083.16135425,0.00042998,4]
[313362399,1707233450069,-155.0,0.00042998,2]
[313362400,1707233450078,-10529.35130976,0.00042998,4]
[313362401,1707233450088,-296.46278445,0.00042998,4]
[313362402,1707233450098,-288.93310823,0.00042998,4]
[313362403,1707233450107,-3185.62367316,0.00042998,4]
[313362404,1707233450117,-760.9452135,0.00042998,4]
[313362405,1707233450126,-500.0,0.00042998,4]
[313362406,1707233450136,-155.0,0.00042998,4]
[313362407,1707233450145,-299.00498181,0.00042998,4]
[313362408,1707233450154,-200.0,0.00042998,2]
[313362409,1707233450164,-2246.77852355,0.00042998,4]
[313362410,1707233450174,-4501.54867596,0.00042998,4]
[313362411,1707233450184,-2604.63686355,0.00042998,4]
[313362412,1707233450194,-155.48463422,0.00042998,4]
[313362413,1707233450203,-168.67869965,0.00042998,4]
[313362414,1707233450213,-211.13259107,0.00042998,4]
[313362415,1707233450223,-3551.44416525,0.00042998,4]
[313362416,1707233450232,-3037.94768246,0.00042998,4]
[313362417,1707233450243,-294.1014109,0.00042998,4]
[313362418,1707233450252,-635.6938339,0.00042998,4]
[313362419,1707233450262,-413.22910588,0.00042998,2]
[313362420,1707233450272,-150.0,0.00042998,4]
[313362421,1707233450282,-150.0,0.00042998,4]
[313362422,1707233450294,-25352.78737578,0.00042998,3]
[313362423,1707233450304,-947.08134759,0.00042999,4]
[313362424,1707233450315,-696.73272772,0.00042999,4]
[313362425,1707233450325,-177.58629654,0.00042999,4]
[313362426,1707233450335,-2158.83093085,0.00042999,4]
[313362427,1707233450345,-871203.21038366,0.00042999,2]
[313362428,1707233450360,-466.3109541,0.00042999,2]
[313362429,1707233450373,-363.61901928,0.00042999,2]
[313362430,1707233450390,-2036.77752424,0.00042999,2]
[313362431,1707233450402,-171426.58248141,0.00042999,2]
[313362432,1707233450483,-1139.48859866,0.00042999,2]
[313362433,1707233450495,-2810.4049334,0.00042999,2]
[313362434,1707233450507,-2156.95,0.00042999,2]
[313362435,1707233450518,-419.93,0.00042999,2]
[313362436,1707233450530,-351.99759,0.00042999,2]
[313362437,1707233450731,-431.17,0.00042999,2]
[313362438,1707233450827,-155.0,0.00030998,2]
[313362439,1707233450837,-186.40190135,0.00042876,19]
[313362440,1707233450847,-3425.52093864,0.00042999,2]
[313362441,1707233450859,-3015.99546115,0.00042999,2]
[313362442,1707233450880,-506.1561188,0.00042999,2]
[313362443,1707233450893,-818.11765587,0.00042999,2]
[313362444,1707233450904,-162.31719868,0.00042999,2]
[313362445,1707233450913,-1614.00621812,0.00042999,2]
[313362446,1707233450926,-3382.54248743,0.00042999,2]
[313362447,1707233450938,-4546.81276111,0.00042999,2]
[313362448,1707233450948,-151.0,0.00042999,14]
[313362449,1707233450958,-16460.19963889,0.00043,23]
[313362450,1707233450971,-938.24639975,0.00043,23]
[313362451,1707233450985,-277.059999,0.00043,23]
[313362452,1707233451106,-416.84944925,0.00037999,4]
[313362453,1707233451243,-441.19542684,0.00049726,60]
[313362454,1707233451269,-500.0,0.00049726,60]
[313362455,1707233451306,-729.4929779,0.0005,60]
[313362456,1707233451332,-185.50050621,0.00050136,60]
[313362457,1707233451360,-357845.16752314,0.0005075,120]
[313362458,1707233451385,-666.29395341,0.00050765,60]
[313362459,1707233451411,-151.0206,0.00050798,35]
[313362460,1707233451437,-666.29395341,0.00050872,60]
[313362461,1707233451464,-1133.48789608,0.000509,120]
[313362462,1707233451489,-500.0,0.00050958,60]
[313362463,1707233451514,-521.28,0.00050958,60]
[313362464,1707233451538,-500.0,0.00050958,60]
[313362465,1707233451563,-500.0,0.00050958,60]
[313362466,1707233451587,-249.64838734,0.00050958,60]
[313362467,1707233451613,-500.0,0.00050958,60]
[313362468,1707233451641,-458.48756096,0.00050958,60]
[313362469,1707233451669,-500.0,0.00050958,60]
[313362470,1707233451700,-500.0,0.00050958,60]
[313362471,1707233451724,-500.0,0.00050958,60]
[313362472,1707233451748,-585.00428923,0.00050958,60]
[313362473,1707233451770,-500.0,0.00050958,60]
[313362474,1707233451797,-500.0,0.00050958,60]
[313362475,1707233451820,-232.26611634,0.00050958,60]
[313362476,1707233451843,-500.0,0.00050958,60]
[313362477,1707233451866,-500.0,0.00050958,60]
[313362478,1707233451889,-500.0,0.00050958,60]
[313362479,1707233451913,-500.0,0.00050958,60]
[313362480,1707233451935,-500.0,0.00050958,60]
[313362481,1707233451958,-381.56098094,0.00050958,60]
[313362482,1707233451983,-500.0,0.00050958,60]
[313362483,1707233452006,-500.0,0.00050958,60]
[313362484,1707233452029,-588.88345661,0.00050958,60]
[313362485,1707233452056,-500.0,0.00050958,60]
[313362486,1707233452161,-560.83815237,0.00050958,60]
[313362487,1707233452186,-500.0,0.00050958,60]
[313362488,1707233452209,-253.43670185,0.00050958,60]
[313362489,1707233452232,-500.0,0.00050958,60]
[313362490,1707233452256,-200.86158265,0.00050958,60]
[313362491,1707233452280,-500.0,0.00050958,60]
[313362492,1707233452305,-1214.81,0.00050958,60]
[313362493,1707233452328,-161.25202488,0.00050958,60]
[313362494,1707233452351,-500.0,0.00050958,60]
[313362495,1707233452376,-500.0,0.00050958,60]
[313362496,1707233452399,-561.09,0.00050958,60]
[313362497,1707233452424,-500.0,0.00050958,60]
[313362498,1707233452447,-826.53,0.00050958,60]
[313362499,1707233452470,-500.0,0.00050958,60]
[313362500,1707233452494,-493.82294608,0.00050958,60]
[313362501,1707233452517,-430.65983494,0.00050958,60]
[313362502,1707233452542,-903.63,0.00050958,60]
[313362503,1707233452570,-500.0,0.00050958,60]
[313362504,1707233452595,-629.36239809,0.00050958,60]
[313362505,1707233452619,-500.0,0.00050958,60]
[313362506,1707233452645,-360.56473557,0.00050958,60]
[313362507,1707233452670,-862.8172729,0.00050958,60]
[313362508,1707233452698,-600.0,0.00050958,60]
[313362509,1707233452724,-500.0,0.00050958,60]
[313362510,1707233452749,-465.19011421,0.00050958,60]